bitfinex-derivatives/quotes_ETHF0:USTF0_20240917
["timestamp","ask_amount","ask_price","bid_price","bid_amount"]
[1726601338242,0.42473,2353.8,2353.7,3.74474]
[1726601338649,0.42477,2353.7,2353.6,3.32]
[1726601338846,0.83224,2353.8,2353.7,0.42475]
[1726601339346,4.13874835,2353.8,2353.7,0.42475]
[1726601339645,4.13874835,2353.8,2353.5,0.42478]
[1726601339646,0.42477,2353.6,2353.5,0.42478]
[1726601339853,0.42477,2353.6,2353.5,0.97220407]
[1726601340445,3.2078,2353.7,2353.6,0.42477]
[1726601340747,4.13875835,2353.8,2353.7,0.42475]
[1726601340959,0.83225,2353.8,2353.7,0.42475]
[1726601341145,4.13875835,2353.8,2353.7,0.42475]
[1726601341449,0.83225,2353.8,2353.7,0.42475]
[1726601342050,3.73123835,2353.9,2353.8,0.42473]
[1726601342237,6.92730835,2354.0,2353.8,3.74473]
[1726601342443,7.35201835,2354.0,2353.9,0.42472]
[1726601342651,7.3648501,2354.0,2353.9,0.42472]
[1726601342851,4.04551,2354.0,2353.9,0.42472]
[1726601343151,0.42472,2353.9,2353.8,3.74472]
[1726601343348,3.74408002,2353.9,2353.8,3.74472]
[1726601348455,3.31936002,2353.9,2353.8,11.20052]
[1726601348645,2.76656782,2354.0,2353.9,1.48651]
[1726601348844,3.31936002,2354.2,2354.1,0.42468]
[1726601349048,3.31936002,2354.3,2354.2,0.42466]
[1726601349249,3.74400002,2354.3,2354.2,0.96417774]
[1726601349450,3.74400002,2354.3,2354.2,0.97203774]
[1726601349649,0.42466,2354.2,2354.1,3.32]
[1726601349959,3.74401002,2354.3,2354.1,3.86732024]
[1726601350151,3.74401002,2354.3,2353.9,0.4168]
[1726601350152,0.42468,2354.1,2354.0,3.32]
[1726601350354,0.42468,2354.1,2354.0,4.2920434]
[1726601350559,6.95184002,2354.2,2354.0,4.2920434]
[1726601350759,6.95184002,2354.2,2354.0,3.7447]
[1726601350760,3.74403002,2354.2,2354.0,3.7447]
[1726601351252,3.74403002,2354.2,2354.1,3.74468]
[1726601351456,3.74403002,2354.2,2354.1,3.32]
[1726601352047,0.42467,2354.2,2354.1,3.32]
[1726601353255,0.42467,2354.2,2354.1,3.74468]
[1726601353456,3.31936002,2354.3,2354.2,0.42466]
[1726601353855,6.52716002,2354.5,2354.4,0.42463]
[1726601354060,3.31936002,2354.5,2354.4,3.74463]
[1726601354362,4.16783002,2354.7,2354.6,0.42459]
[1726601354554,0.84847,2354.7,2354.5,0.84939]
[1726601354857,0.4239,2354.7,2354.6,3.74459]
[1726601355062,0.84847,2354.7,2354.6,3.74459]
[1726601355260,0.4239,2354.7,2354.6,3.74459]
[1726601355560,2.76575334,2354.7,2354.6,7.99179]
[1726601355766,3.74388002,2355.0,2354.7,0.42457]
[1726601355767,2.76575334,2354.8,2354.7,0.42457]
[1726601356059,2.76575334,2354.8,2354.7,4.16497]
[1726601356267,2.76575334,2354.8,2354.7,8.41137]
[1726601356658,2.76575334,2354.9,2354.7,7.5664]
[1726601356864,3.19030334,2354.8,2354.7,3.32]
[1726601357058,3.15265334,2354.8,2354.7,3.74457]
[1726601357562,2.59761397,2354.8,2354.7,3.32]
[1726601357862,0.3869,2354.8,2354.7,3.32]
[1726601358053,0.3869,2354.8,2354.7,3.74457]
[1726601358659,3.02144395,2354.8,2354.7,3.74457]
[1726601358965,2.59689395,2354.8,2354.7,3.74457]
[1726601361665,0.3869,2354.8,2354.7,3.74457]
[1726601361966,0.81145,2354.8,2354.7,3.74457]
[1726601363566,3.02144395,2354.8,2354.7,3.74457]
[1726601363757,0.81145,2354.8,2354.7,3.74457]
[1726601363954,0.81145,2354.8,2354.6,0.4229]
[1726601364268,2.63459395,2354.7,2354.6,0.42459]
[1726601364469,0.42462,2354.5,2354.4,0.42461]
[1726601364660,5.2898039,2354.5,2354.4,0.42461]
[1726601364855,3.63242,2354.5,2354.4,0.42461]
[1726601365159,2.08213628,2354.5,2354.4,0.42461]
[1726601366062,0.42462,2354.5,2354.4,0.42461]
[1726601367066,2.08184144,2354.5,2354.4,0.42461]
[1726601367869,0.42462,2354.5,2354.4,0.42461]
[1726601368067,2.08256711,2354.5,2354.4,0.42461]
[1726601369568,0.42462,2354.5,2354.4,0.42461]
[1726601370074,0.42463,2354.4,2354.3,3.74463]
[1726601370272,2.48414851,2354.4,2354.3,3.74463]
[1726601370670,0.82623,2354.4,2354.3,3.74463]
[1726601371272,3.03609627,2354.4,2354.3,3.74463]
[1726601374577,0.82623,2354.4,2354.3,3.74463]
[1726601375375,2.48351641,2354.4,2354.3,3.74463]
[1726601375571,0.82623,2354.4,2354.3,3.74463]
[1726601376475,3.03609627,2354.4,2354.3,3.74463]
[1726601378674,2.08233204,2354.4,2354.3,3.74463]
[1726601379069,1.65770204,2354.4,2354.3,3.74463]
[1726601379275,1.10589552,2354.5,2354.4,0.42463]
[1726601379477,1.10588988,2354.5,2354.4,4.14443]
[1726601379774,1.10588988,2354.5,2354.4,8.39163]
[1726601381371,1.10588988,2354.5,2354.4,4.14443]
[1726601381679,1.10588988,2354.5,2354.4,8.39163]
[1726601381879,1.10588988,2354.5,2354.4,4.14443]
[1726601382172,1.10588988,2354.5,2354.4,8.39163]
[1726601382478,1.65770204,2354.6,2354.5,0.42461]
[1726601382684,2.63444627,2354.7,2354.6,0.42459]
[1726601382977,2.63444627,2354.7,2354.6,3.74459]
[1726601383871,2.20986627,2354.7,2354.6,3.74459]
[1726601384478,2.76575334,2354.9,2354.6,7.5672]
[1726601384775,3.2078,2355.0,2354.9,0.42454]
[1726601385379,3.2078,2355.0,2354.9,0.82834]
[1726601385990,3.63232,2355.0,2354.9,0.82834]
[1726601386165,6.39807334,2355.0,2354.9,0.82834]
[1726601386574,3.2078,2355.0,2354.9,0.82834]
[1726601386969,5.97355334,2355.0,2354.9,0.82834]
[1726601387278,2.76575334,2355.1,2355.0,0.42452]
[1726601387574,0.8218,2355.2,2355.0,3.32]
[1726601387575,3.58754334,2355.2,2355.0,3.32]
[1726601387771,3.58754334,2355.2,2355.0,3.7445]
[1726601388278,3.19023334,2355.2,2355.0,3.7445]
[1726601388471,2.76575334,2355.2,2355.1,0.4245]
[1726601388781,6.92106002,2355.4,2355.2,0.42448]
[1726601388782,6.79191334,2355.4,2355.2,0.42448]
[1726601388976,6.79191334,2355.4,2355.3,3.32]
[1726601389182,6.36745334,2355.4,2355.3,3.32]
[1726601389479,6.39800334,2355.4,2355.3,3.32]
[1726601390569,6.39800334,2355.4,2354.9,0.4038]
[1726601390570,0.42448,2355.3,2355.1,3.74449]
[1726601390966,3.19344153,2355.3,2355.1,3.74449]
[1726601391279,0.42448,2355.2,2355.1,3.74449]
[1726601391675,0.42448,2355.2,2355.1,3.7445]
[1726601392078,3.58584153,2355.3,2355.2,0.42448]
[1726601393680,3.58584153,2355.3,2355.1,3.74449]
[1726601393681,0.42448,2355.2,2355.1,3.74449]
[1726601393976,3.19433258,2355.2,2355.1,3.74449]
[1726601396783,2.76985258,2355.2,2355.1,3.74449]
[1726601396975,3.19433258,2355.2,2355.1,3.74449]
[1726601399885,2.76985258,2355.2,2355.1,3.74449]
[1726601400278,0.4245,2355.1,2355.0,0.4158]
[1726601400585,0.4245,2355.1,2355.0,3.32]
[1726601401685,0.4245,2355.1,2355.0,3.74452]
[1726601402081,2.76985258,2355.2,2355.0,3.74451]
[1726601402280,4.4712,2355.1,2355.0,3.32]
[1726601402488,4.4712,2355.1,2355.0,3.74452]
[1726601403785,4.4712,2355.1,2354.7,0.42456]
[1726601403786,12.12421258,2355.1,2354.7,0.42456]
[1726601404085,0.42454,2354.9,2354.8,0.42455]
[1726601404483,0.42454,2354.9,2354.8,3.74455]
[1726601406693,6.81655258,2355.1,2354.8,3.74455]
[1726601407191,0.42453,2355.0,2354.8,3.74455]
[1726601407579,0.42454,2354.9,2354.8,3.74455]
[1726601407992,0.42453,2355.0,2354.8,3.74455]
[1726601408187,0.42453,2355.0,2354.9,3.32]
[1726601408386,4.0467,2355.1,2355.0,0.42452]
[1726601408590,4.95976253,2355.8,2355.4,3.2078]
[1726601408591,1.45919576,2355.8,2355.4,3.2078]
[1726601408787,1.10739915,2356.0,2355.7,4.31777795]
[1726601408989,1.10739915,2356.0,2355.8,0.54277054]
[1726601409185,1.10739915,2356.0,2355.7,3.2078]
[1726601409186,0.7881,2355.9,2355.7,3.2078]
[1726601409386,0.7881,2355.9,2355.7,6.95218]
[1726601409585,2.28201963,2355.9,2355.7,6.95219]
[1726601410483,2.28201963,2355.9,2355.2,1.11009777]
[1726601410688,3.6322,2355.7,2355.2,0.42448]
[1726601410896,2.28201963,2355.9,2355.6,6.5278]
[1726601410897,1.49391963,2355.9,2355.6,6.5278]
[1726601411191,0.3911,2355.7,2355.6,3.32]
[1726601411490,0.3911,2355.7,2355.4,3.32]
[1726601411687,0.3911,2355.7,2355.2,3.2078]
[1726601411688,1.88501963,2355.7,2355.2,6.5278]
[1726601411888,1.88501963,2355.7,2355.6,3.32]
[1726601412084,1.88501963,2355.7,2355.6,3.74441]
[1726601412693,0.3867,2355.8,2355.7,0.42439]
[1726601412893,1.88061963,2355.8,2355.7,0.42439]
[1726601413092,0.3867,2355.8,2355.7,0.42439]
[1726601413283,0.8042,2356.0,2355.9,0.42436]
[1726601413491,0.4092,2356.4,2355.9,6.5278]
[1726601413794,1.2211,2356.4,2356.3,3.32]
[1726601414096,2.71501963,2356.4,2356.3,3.32]
[1726601415084,2.71501963,2356.4,2356.1,0.42431]
[1726601415085,0.42428,2356.3,2356.0,3.32]
[1726601415302,0.42429,2356.3,2356.0,3.32]
[1726601415491,1.49391963,2356.3,2356.0,3.32]
[1726601415691,1.49391963,2356.3,2356.2,3.32]
[1726601416004,1.91819963,2356.3,2356.2,3.32]
[1726601416188,6.16219963,2356.3,2356.2,3.32]
[1726601416997,0.42432,2356.1,2356.0,3.32]
[1726601417197,0.42431,2356.2,2356.0,3.32]
[1726601417592,6.16222963,2356.2,2356.0,3.32]
[1726601417897,1.91822963,2356.2,2356.0,3.32]
[1726601418095,1.49391963,2356.2,2356.0,3.32]
[1726601418294,0.42432,2356.1,2356.0,3.32]
[1726601418592,1.49391963,2356.2,2356.0,3.32]
[1726601418797,0.42432,2356.1,2356.0,3.32]
[1726601419294,1.91823963,2356.1,2356.0,3.32]
[1726601419504,6.16223963,2356.1,2356.0,3.32]
[1726601420294,1.91823963,2356.1,2356.0,3.32]
[1726601420601,6.16223963,2356.1,2356.0,3.32]
[1726601420896,6.16223963,2356.1,2355.6,7.499]
[1726601420897,0.42439,2355.7,2355.6,7.499]
[1726601421098,10.244,2356.1,2355.0,2.68508037]
[1726601421099,6.5278,2355.9,2355.0,2.68508037]
[1726601421309,0.4245,2355.1,2355.0,3.32]
[1726601421493,0.42449,2355.2,2354.8,6.9288]
[1726601421697,0.394,2355.1,2355.0,3.32]
[1726601422195,0.8093,2355.1,2355.0,3.32]
[1726601423605,1.2338,2355.1,2355.0,3.32]
[1726601423792,1.2338,2355.1,2355.0,3.74452]
[1726601423793,0.8093,2355.1,2355.0,3.74452]
[1726601424099,0.42444,2355.5,2355.3,0.42445]
[1726601424291,1.23753,2355.5,2355.4,3.32]
[1726601424697,5.48313,2355.5,2355.4,3.32]
[1726601425099,5.48313,2355.5,2355.4,3.74445]
[1726601425100,5.0587,2355.5,2355.4,3.74445]
[1726601425299,5.0587,2355.5,2355.4,3.32]
[1726601425300,1.23753,2355.5,2355.4,3.32]
[1726601425500,0.8131,2355.5,2355.4,3.74445]
[1726601426104,1.23753,2355.5,2355.4,3.32]
[1726601427609,1.23754,2355.5,2355.3,3.74446]
[1726601429912,0.42445,2355.4,2355.3,3.74446]
[1726601431316,0.42445,2355.4,2355.3,3.32]
[1726601431621,0.8131,2355.5,2355.3,3.74446]
[1726601431817,1.23753,2355.5,2355.4,3.74445]
[1726601432317,1.23753,2355.5,2355.4,3.32]
[1726601432509,2.29861,2355.5,2355.4,3.32]
[1726601432715,1.23753,2355.5,2355.4,3.32]
[1726601433214,2.76211001,2355.7,2355.6,0.42441]
[1726601433415,0.42439,2355.7,2355.6,3.74441]
[1726601433820,0.84346,2355.9,2355.8,0.42437]
[1726601434015,0.84346,2355.9,2355.8,3.74437]
[1726601434327,0.4191,2355.9,2355.8,3.74437]
[1726601434616,0.4191,2355.9,2355.8,6.95217]
[1726601434823,0.84346,2355.9,2355.8,6.95217]
[1726601435012,0.4191,2355.9,2355.8,6.95217]
[1726601435208,0.8216,2356.0,2355.9,0.42436]
[1726601435722,0.42429,2356.3,2356.1,0.42431]
[1726601435924,0.42431,2356.2,2356.1,3.32]
[1726601442021,0.42433,2356.1,2356.0,0.42434]
[1726601443133,0.42433,2356.1,2355.9,4.16914]
[1726601443323,0.42433,2356.1,2356.0,0.42434]
[1726601444025,0.42433,2356.1,2355.9,3.7448]
[1726601444221,0.42434,2356.0,2355.9,4.16915]
[1726601444425,1.06081,2356.1,2355.7,6.5278]
[1726601444726,1.06094,2355.8,2355.5,3.7201]
[1726601444924,0.4244,2355.7,2355.6,0.4244]
[1726601445125,0.81696,2355.9,2355.8,0.42437]
[1726601445326,3.82294001,2356.1,2355.7,3.2078]
[1726601445327,0.42434,2356.0,2355.7,3.2078]
[1726601445537,0.42435,2356.0,2355.9,0.42435]
[1726601445732,0.42435,2356.0,2355.9,3.32]
[1726601446433,1.4852,2356.0,2355.9,3.32]
[1726601447028,0.42437,2355.8,2355.7,6.95218]
[1726601447235,0.42437,2355.8,2355.7,6.5278]
[1726601448522,1.65117,2355.8,2355.7,6.5278]
[1726601449133,1.65117,2355.8,2355.7,6.95219]
[1726601449328,1.2268,2355.8,2355.7,6.95219]
[1726601449526,0.42437,2355.9,2355.8,0.42437]
[1726601449727,0.42435,2356.0,2355.9,0.42436]
[1726601449927,0.42435,2356.0,2355.9,3.74436]
[1726601450136,0.82253,2356.1,2356.0,0.42434]
[1726601450435,0.82253,2356.1,2356.0,0.83514]
[1726601451028,0.82253,2356.1,2356.0,0.4108]
[1726601451635,0.82253,2356.1,2356.0,0.83514]
[1726601451833,0.42427,2356.4,2356.0,8.92345]
[1726601452035,2.76211001,2356.7,2356.3,6.5278]
[1726601452228,0.8174,2356.8,2356.6,3.32]
[1726601452428,0.8378,2356.8,2356.6,3.74423]
[1726601452732,0.42421,2356.7,2356.6,3.32]
[1726601453431,0.4136,2356.8,2356.6,3.74423]
[1726601453630,0.42419,2356.8,2356.6,3.74423]
[1726601453839,0.42419,2356.8,2356.7,0.42421]
[1726601454139,0.42419,2356.8,2356.6,7.98742]
[1726601454437,0.42421,2356.7,2356.6,3.32]
[1726601457332,0.42421,2356.7,2356.3,3.2078]
[1726601457333,0.42425,2356.6,2356.3,3.2078]
[1726601457534,0.42427,2356.4,2356.3,3.2078]
[1726601457729,0.42428,2356.3,2356.2,3.7341]
[1726601458034,0.42428,2356.3,2356.0,4.13343]
[1726601458035,0.42431,2356.2,2356.0,4.13343]
[1726601458342,0.3908,2356.3,2356.1,0.42432]
[1726601458540,0.4243,2356.2,2356.0,1.22753]
[1726601458841,0.4243,2356.2,2356.1,0.42432]
[1726601459341,0.42431,2356.2,2356.0,0.83843]
[1726601459542,0.42431,2356.2,2356.1,3.32]
[1726601460241,0.42434,2356.0,2355.9,3.32]
[1726601460436,0.42437,2355.8,2355.7,3.7187]
[1726601460742,0.42439,2355.8,2355.7,3.32]
[1726601462329,0.83306,2355.9,2355.8,0.42437]
[1726601462536,0.4087,2355.9,2355.7,3.74438]
[1726601462737,0.83307,2355.9,2355.7,3.32]
[1726601462940,0.42437,2355.8,2355.7,3.32]
[1726601463240,0.83307,2355.9,2355.7,3.74438]
[1726601463440,0.4087,2355.9,2355.7,3.32]
[1726601463744,0.83306,2355.9,2355.7,3.74439]
[1726601464339,0.83306,2355.9,2355.7,3.32]
[1726601464340,0.4087,2355.9,2355.7,3.32]
[1726601464543,0.83307,2355.9,2355.7,3.74439]
[1726601465738,0.4087,2355.9,2355.7,3.32]
[1726601465937,0.4087,2355.9,2355.8,0.42437]
[1726601466338,0.83306,2355.9,2355.8,0.42437]
[1726601466539,0.83306,2355.9,2355.7,3.32]
[1726601466735,0.4087,2355.9,2355.7,3.74438]
[1726601467035,0.83307,2355.9,2355.7,3.74438]
[1726601467843,0.42437,2355.9,2355.7,3.74438]
[1726601469045,0.42437,2355.8,2355.7,3.32]
[1726601469437,0.42437,2355.8,2355.7,3.74439]
[1726601469634,0.83747,2355.8,2355.7,3.74439]
[1726601470241,0.4131,2355.8,2355.7,3.74439]
[1726601470446,3.82288001,2356.2,2355.7,3.74439]
[1726601470447,2.76211001,2356.2,2355.7,13.5648]
[1726601470648,0.8177,2356.5,2356.1,7.58859]
[1726601470846,3.16241001,2356.8,2356.5,0.42423]
[1726601471155,0.42422,2356.7,2356.6,3.32]
[1726601471441,7.43497001,2356.9,2356.6,3.32]
[1726601471442,2.76211001,2356.9,2356.6,3.32]
[1726601471644,0.42418,2356.9,2356.8,3.32]
[1726601472844,0.83727,2357.0,2356.8,3.32]
[1726601473040,0.42418,2356.9,2356.8,3.32]
[1726601473348,0.83727,2357.0,2356.8,3.32]
[1726601473735,0.42419,2356.8,2356.7,3.7296]
[1726601473934,0.42419,2356.8,2356.7,3.32]
[1726601475647,0.4131,2357.0,2356.7,3.32]
[1726601475856,0.42419,2356.8,2356.7,3.32]
[1726601476246,0.42423,2356.6,2356.5,3.32]
[1726601476447,3.17521001,2357.0,2355.9,3.32]
[1726601476448,3.6248,2356.7,2355.9,3.32]
[1726601476649,1.48055,2356.5,2355.9,3.7156]
[1726601476949,0.42431,2356.2,2356.0,0.42434]
[1726601478147,0.42433,2356.1,2355.9,4.13995]
[1726601478453,1.27053,2356.1,2355.9,4.13995]
[1726601478953,0.8462,2356.1,2355.9,3.7156]
[1726601479254,1.27053,2356.1,2356.0,0.42434]
[1726601479549,1.27053,2356.1,2355.9,4.13995]
[1726601479757,1.27053,2356.1,2356.0,0.42434]
[1726601480245,1.27053,2356.1,2355.9,4.13995]
[1726601480453,1.27053,2356.1,2356.0,0.42434]
[1726601480847,0.8462,2356.1,2356.0,0.42434]
[1726601481549,0.42431,2356.2,2356.0,0.42432]
[1726601481756,0.42431,2356.2,2355.9,3.7156]
[1726601481757,0.4024,2356.4,2356.1,6.5278]
[1726601482052,0.4024,2356.4,2356.3,3.74428]
[1726601482243,2.76211001,2356.6,2356.3,3.32]
[1726601482443,7.07261256,2357.1,2356.3,3.32]
[1726601482444,3.57571001,2356.9,2356.5,6.5278]
[1726601482644,1.23778,2356.9,2356.8,3.32]
[1726601482841,0.42418,2356.9,2356.8,3.32]
[1726601483249,2.76211001,2357.1,2357.0,0.42416]
[1726601483456,0.8136,2357.3,2357.0,3.74416]
[1726601483457,3.18624001,2357.2,2357.0,3.74416]
[1726601483647,2.76211001,2357.2,2357.0,3.32]
[1726601483847,2.76211001,2357.2,2357.0,3.74415]
[1726601484046,3.18624001,2357.2,2357.0,4.49415]
[1726601484357,3.18624001,2357.2,2356.9,0.3982]
[1726601484358,0.42414,2357.1,2356.9,0.82237]
[1726601484548,2.76211001,2357.2,2356.9,0.82237]
[1726601484549,3.18624001,2357.2,2356.9,0.82237]
[1726601485155,3.18624001,2357.2,2357.0,0.42416]
[1726601485156,2.76211001,2357.2,2357.0,0.42416]
[1726601485358,4.44551,2357.3,2356.9,0.3982]
[1726601485359,3.99982001,2357.3,2357.1,0.42414]
[1726601485852,3.99982001,2357.3,2356.9,0.3982]
[1726601485853,0.42412,2357.2,2357.0,0.42414]
[1726601486048,3.57571001,2357.3,2356.9,0.3982]
[1726601486249,0.42413,2357.2,2357.0,0.42415]
[1726601486449,0.42412,2357.2,2356.9,0.3982]
[1726601486660,0.42412,2357.2,2357.0,0.42416]
[1726601487046,0.8136,2357.3,2356.9,0.3982]
[1726601487047,0.42415,2357.1,2356.9,0.3982]
[1726601487263,3.57571001,2357.3,2356.7,0.3892]
[1726601487264,1.06031,2357.2,2356.7,0.3892]
[1726601487451,3.82242001,2357.2,2356.5,3.6104]
[1726601487647,1.0604,2357.0,2356.6,0.42422]
[1726601487959,1.06045,2356.9,2356.5,3.63204]
[1726601488163,0.42423,2356.6,2356.5,0.42424]
[1726601488350,0.42423,2356.6,2356.4,0.42425]
[1726601488550,0.42423,2356.6,2356.5,0.42425]
[1726601488952,0.42422,2356.7,2356.5,0.42425]
[1726601489561,0.42423,2356.6,2356.5,0.42425]
[1726601490860,1.2164,2356.8,2356.4,7.2778]
[1726601491058,1.06038,2357.1,2356.9,0.42418]
[1726601491059,3.60986001,2357.1,2356.9,0.42418]
[1726601491367,0.42415,2357.1,2356.7,7.2778]
[1726601491552,3.14671001,2357.3,2357.0,7.2778]
[1726601491858,0.80872,2357.3,2357.1,0.42413]
[1726601492159,0.42412,2357.2,2357.1,0.42413]
[1726601492455,0.42412,2357.2,2357.0,7.70195]
[1726601492862,2.5970893,2357.3,2357.1,0.42414]
[1726601493063,2.5970893,2357.3,2357.0,4.49415]
[1726601493064,0.42414,2357.1,2357.0,4.49415]
[1726601493449,0.42413,2357.2,2357.1,0.42414]
[1726601493759,2.2124893,2357.6,2357.5,1.06018]
[1726601493955,2.76211001,2357.8,2357.7,0.42403]
[1726601493956,2.2124893,2357.8,2357.7,0.42403]
[1726601494160,2.2124893,2357.9,2357.8,0.42401]
[1726601494358,5.8464893,2358.0,2357.6,0.4207]
[1726601494662,3.634,2358.0,2357.8,0.424]
[1726601494851,2.2124893,2358.1,2357.9,7.2778]
[1726601495059,0.42397,2358.1,2357.9,4.49399]
[1726601495252,2.6364393,2358.2,2358.0,0.42397]
[1726601495457,2.6364193,2358.3,2357.9,7.2778]
[1726601495755,0.4129,2358.4,2357.9,7.2778]
[1726601495756,2.2124893,2358.4,2358.2,0.42394]
[1726601495959,2.6386893,2358.5,2358.3,0.42392]
[1726601496160,2.6386893,2358.5,2357.9,3.2078]
[1726601496349,0.42391,2358.4,2358.1,0.42396]
[1726601496757,0.42394,2358.3,2358.0,0.42398]
[1726601496956,2.6386893,2358.5,2357.9,3.2078]
[1726601497158,1.05984,2358.3,2357.6,4.4907]
[1726601497368,0.42395,2358.2,2357.9,0.42399]
[1726601497657,0.42397,2358.1,2357.8,7.7018]
[1726601497857,0.42396,2358.1,2357.9,0.42399]
[1726601498060,0.42395,2358.2,2358.0,0.42397]
[1726601498259,0.42396,2358.1,2357.9,0.42399]
[1726601498459,2.2124893,2358.3,2357.8,3.2078]
[1726601498460,0.42399,2358.0,2357.8,3.2078]
[1726601498663,0.3885,2358.2,2357.8,3.2078]
[1726601499061,0.42399,2358.0,2357.8,3.6318]
[1726601499254,0.424,2357.9,2357.8,3.2078]
[1726601499462,1.44838,2358.2,2357.8,3.63181]
[1726601499463,0.42399,2358.0,2357.8,3.63181]
[1726601499764,0.424,2357.9,2357.8,3.2078]
[1726601499955,0.424,2357.9,2357.8,3.63181]
[1726601500157,0.424,2357.9,2357.8,3.2078]
[1726601500564,1.44838,2358.2,2357.8,3.2078]
[1726601500565,0.42398,2358.0,2357.8,3.63181]
[1726601500767,0.424,2357.9,2357.8,3.63181]
[1726601501762,0.42397,2358.1,2358.0,0.42397]
[1726601501962,0.42395,2358.2,2357.8,7.2778]
[1726601502164,3.6984193,2358.5,2358.1,7.2778]
[1726601502165,0.42393,2358.3,2358.1,7.2778]
[1726601502464,0.42392,2358.3,2358.2,0.42394]
[1726601502856,0.42392,2358.4,2358.2,0.42394]
[1726601503059,1.48593,2358.5,2358.1,7.70175]
[1726601503366,0.42394,2358.2,2358.1,7.70175]
[1726601503761,0.42394,2358.2,2358.1,3.63176]
[1726601503955,0.42394,2358.2,2358.1,7.4486]
[1726601504158,5.30066,2358.2,2357.8,3.2078]
[1726601504363,0.4262,2358.5,2357.2,3.2078]
[1726601504364,0.42405,2357.6,2357.2,3.2078]
[1726601504563,0.42407,2357.5,2357.4,0.42407]
[1726601504966,0.42406,2357.6,2357.5,0.42406]
[1726601505467,1.48368,2358.0,2357.6,0.42404]
[1726601505468,0.42404,2357.7,2357.6,0.42404]
[1726601505671,1.06,2357.9,2357.6,0.42405]
[1726601505870,0.42404,2357.7,2357.6,0.42405]
[1726601506265,1.06,2357.9,2357.5,3.2078]
[1726601506471,0.42403,2357.7,2357.6,0.42404]
[1726601506675,1.48366,2358.0,2357.6,0.42404]
[1726601506967,1.06,2357.9,2357.6,0.42404]
[1726601507166,0.42403,2357.7,2357.6,0.42404]
[1726601507369,0.42403,2357.8,2357.7,0.42403]
[1726601507575,1.48366,2358.0,2357.6,0.42404]
[1726601507870,0.42401,2357.8,2357.7,0.42402]
[1726601508060,0.4237,2358.0,2357.7,0.42402]
[1726601508265,0.42401,2357.9,2357.7,0.42402]
[1726601508466,0.42401,2357.8,2357.7,0.42402]
[1726601508671,0.4237,2358.0,2357.6,4.07]
[1726601508973,0.4237,2358.0,2357.9,0.424]
[1726601509169,0.4237,2358.0,2357.6,4.07]
[1726601509170,0.424,2357.9,2357.6,4.07]
[1726601509676,0.42403,2357.8,2357.7,0.42403]
[1726601510770,0.4237,2358.0,2357.6,4.07]
[1726601510976,0.42402,2357.8,2357.7,0.42403]
[1726601511176,0.42403,2357.7,2357.6,4.49404]
[1726601511376,1.48368,2358.0,2357.6,4.07]
[1726601511578,0.42402,2357.8,2357.7,0.42402]
[1726601512184,0.42403,2357.7,2357.6,4.49403]
[1726601512472,1.48368,2358.0,2357.7,0.42403]
[1726601512473,0.42403,2357.8,2357.7,0.42403]
[1726601515374,0.42403,2357.7,2357.6,0.42404]
[1726601515571,0.42407,2357.5,2357.4,0.42407]
[1726601515969,0.42406,2357.6,2357.5,0.42406]
[1726601516672,1.0601,2357.7,2357.4,0.42407]
[1726601516673,0.42407,2357.5,2357.4,0.42407]
[1726601517174,0.42406,2357.6,2357.5,0.42406]
[1726601519279,0.42406,2357.6,2357.3,4.07]
[1726601519280,0.42408,2357.5,2357.4,0.42408]
[1726601519976,0.84998,2357.5,2357.4,0.42408]
[1726601520479,0.42414,2357.1,2357.0,3.31]
[1726601520878,0.42414,2357.1,2357.0,3.73416]
[1726601521272,0.42414,2357.1,2357.0,3.31]
[1726601521477,0.42414,2357.1,2356.9,0.42417]
[1726601521478,0.42417,2357.0,2356.9,0.42417]
[1726601521673,0.42418,2356.9,2356.8,6.5178]
[1726601521869,0.83087,2357.0,2356.8,3.63198]
[1726601522384,0.83087,2357.0,2356.9,0.42418]
[1726601523272,0.4067,2357.0,2356.9,0.42418]
[1726601523580,3.26520519,2357.6,2356.9,10.2424]
[1726601523784,0.42409,2357.4,2357.1,3.2078]
[1726601524177,0.42408,2357.5,2357.3,0.42409]
[1726601524789,0.42409,2357.4,2357.3,0.42409]
[1726601524975,0.8304,2357.6,2357.3,0.42409]
[1726601525175,0.42409,2357.4,2357.3,0.42409]
[1726601525770,1.06018,2357.5,2357.1,3.63193]
[1726601525977,0.42412,2357.2,2357.1,0.42413]
[1726601526369,3.2078,2357.5,2357.2,0.42412]
[1726601526370,0.42412,2357.3,2357.2,0.42412]
[1726601528891,0.42414,2357.2,2357.1,0.42413]
[1726601529576,4.2424,2357.2,2356.8,3.2078]
[1726601529772,4.2424,2357.2,2356.7,0.8104]
[1726601529773,0.42419,2356.8,2356.7,0.8104]
[1726601530079,0.42423,2356.6,2356.5,0.42424]
[1726601530879,0.42425,2356.5,2356.4,0.42426]
[1726601531075,0.42427,2356.4,2356.3,0.42427]
[1726601531280,0.3976,2356.4,2356.3,0.42427]
[1726601531475,0.418,2356.7,2356.2,4.07]
[1726601531476,0.42425,2356.5,2356.2,4.07]
[1726601531686,0.42425,2356.5,2356.4,0.42425]
[1726601532687,0.418,2356.7,2356.2,4.07]
[1726601532878,0.42425,2356.5,2356.4,0.42425]
[1726601533077,0.418,2356.7,2356.2,4.07]
[1726601533284,0.418,2356.7,2356.6,0.42423]
[1726601533884,0.42418,2356.9,2356.8,0.42418]
[1726601534584,0.42418,2356.9,2355.6,20.52436]